[Event "Charlotte Open 2024"]
[Site "Charlotte"]
[Date "2024.01.13"]
[Round "1.17"]
[White "Joseph, Jonath"]
[Black "Aaron, Deepak"]
[Result "1-0"]
[ECO "B22"]
[WhiteElo "2149"]
[BlackElo "2296"]
[Annotator "RC"]
[PlyCount "119"]
[EventDate "2024.01.05"]
[EventType "swiss"]
[EventCountry "USA"]
[SourceTitle "playchess.com"]
[Source "ChessBase"]
[SourceQuality "1"]
[TimeControl "6600+10"]

1. e4 {[%emt 0:00:07]} c5 {[%emt 0:00:57]} 2. Nf3 {[%emt 0:00:27]} Nc6 {[%emt 0:00:09]} 3. c3 {[%emt 0:00:20]} e6 {[%emt 0:00:26]} 4. d4 {[%emt 0:00:33]} d5 {[%emt 0:00:39]} 5. exd5 {[%emt 0:00:57]} exd5 {[%emt 0:00:36]} 6. Be3 {[%emt 0:01:02]} c4 {[%emt 0:00:21]} 7. b3 {[%emt 0:00:29]} cxb3 {[%emt 0:00:05]} 8. axb3 {[%emt 0:00:49]} Bd6 {[%emt 0:00:22]} 9. Bb5 {[%emt 0:06:00]} Nge7 {[%emt 0:00:26]} 10. O-O {[%emt 0:01:23]} O-O {[%emt 0:00:23]} 11. c4 {[%emt 0:05:38]} Bc7 {[%emt 0:05:10]} 12. Nc3 {[%emt 0:02:43]} Bg4 {[%emt 0:01:33]} 13. Bg5 {[%emt 0:18:22]} f6 {[%emt 0:14:58]} 14. Be3 {[%emt 0:07:34]} a6 {[%emt 0:04:37]} 15. Nxd5 {[%emt 0:19:40]} Nxd5 {[%emt 0:03:25]} 16. cxd5 {[%emt 0:00:14]} Nb4 {[%emt 0:01:36]} 17. Bc4 {[%emt 0:02:36]} Kh8 {[%emt 0:03:30]} 18. h3 {[%emt 0:06:48]} Bh5 {[%emt 0:01:33]} 19. Rc1 {[%emt 0:00:49]} b5 {[%emt 0:01:48]} 20. Bd2 {[%emt 0:02:49]} Bxf3 {[%emt 0:11:22]} 21. Qxf3 {[%emt 0:00:38]} Qd6 {[%emt 0:00:26]} 22. Qg3 {[%emt 0:05:31]} Qb6 {[%emt 0:01:28]} 23. Qg4 {[%emt 0:06:16]} bxc4 {[%emt 0:02:45]} 24. bxc4 {[%emt 0:01:08]} Qd6 {[%emt 0:04:15]} 25. g3 {[%emt 0:00:52]} a5 {[%emt 0:01:04]} 26. Bf4 {[%emt 0:00:31]} Qd8 {[%emt 0:00:48]} 27. Rc3 {[%emt 0:03:43]} Bxf4 {[%emt 0:01:43]} 28. Qxf4 {[%emt 0:00:14]} Qc8 {[%emt 0:00:10]} 29. Qf3 {[%emt 0:01:53]} Qxh3 {[%emt 0:02:57]} 30. c5 {[%emt 0:00:47]} Rfd8 {[%emt 0:10:58]} 31. d6 {[%emt 0:01:01]} Qe6 {[%emt 0:00:43]} 32. Re3 {[%emt 0:01:29]} Qd5 {[%emt 0:02:27]} 33. Qxd5 {[%emt 0:02:38]} Nxd5 {[%emt 0:00:04]} 34. Re6 {[%emt 0:00:05]} Kg8 {[%emt 0:18:04]} 35. Rfe1 {[%emt 0:01:10]} Nb4 {[%emt 0:03:42]} 36. Re7 {[%emt 0:01:18]} Nc6 {[%emt 0:02:02]} 37. R7e4 {[%emt 0:03:33]} f5 {[%emt 0:01:40]} 38. Rf4 {[%emt 0:00:21]} g6 {[%emt 0:02:29]} 39. g4 {[%emt 0:00:49]} Nb4 {[%emt 0:01:28]} 40. Rf3 {[%emt 0:01:03]} fxg4 {[%emt 0:00:25]} 41. Rc3 {[%emt 0:00:06]} a4 {[%emt 0:01:05]} 42. Ra1 {[%emt 0:00:44]} Kf7 {[%emt 0:00:30]} 43. Rc4 {[%emt 0:00:10]} Nd5 {[%emt 0:00:58]} 44. Rcxa4 {[%emt 0:00:51]} Rxa4 {[%emt 0:00:01]} 45. Rxa4 {[%emt 0:00:01]} Ke6 {[%emt 0:00:17]} 46. Ra7 {[%emt 0:00:11]} Rd7 {[%emt 0:00:19]} 47. Ra8 {[%emt 0:00:10]} Rf7 {[%emt 0:00:25]} 48. Re8+ {[%emt 0:00:19]} Kd7 {[%emt 0:00:13]} 49. Ra8 {[%emt 0:00:22]} Kc6 {[%emt 0:00:58]} 50. Ra6+ {[%emt 0:00:11]} Kb5 {[%emt 0:00:00]} 51. Ra2 {[%emt 0:00:18]} Kc6 {[%emt 0:00:00]} 52. Ra6+ {[%emt 0:00:07]} Kb5 {[%emt 0:00:16]} 53. Ra2 {[%emt 0:00:07]} Kc4 {[%emt 0:00:12]} 54. Rc2+ {[%emt 0:00:08]} Kd3 {[%emt 0:00:06]} 55. Ra2 {[%emt 0:00:17]} Nc3 {[%emt 0:00:09]} 56. Ra3 {[%emt 0:00:19]} Kxd4 {[%emt 0:00:10]} 57. Rxc3 {[%emt 0:00:27]} Kxc3 {[%emt 0:00:13]} 58. c6 {[%emt 0:00:00]} g3 {[%emt 0:00:11]} 59. c7 {[%emt 0:00:18]} Rf8 {[%emt 0:00:11]} 60. d7 {[%emt 0:00:08]} 1-0

[Event "Charlotte Open 2024"]
[Site "Charlotte"]
[Date "2024.01.13"]
[Round "1.18"]
[White "Daniels, Noah M"]
[Black "Padron Leon, Antonio"]
[Result "1-0"]
[ECO "A05"]
[WhiteElo "1764"]
[BlackElo "2008"]
[Annotator "RC"]
[PlyCount "127"]
[EventDate "2024.01.05"]
[EventType "swiss"]
[EventCountry "USA"]
[SourceTitle "playchess.com"]
[Source "ChessBase"]
[SourceQuality "1"]
[TimeControl "6600+10"]

1. Nf3 {[%emt 0:15:59]} Nf6 {[%emt 0:10:11]} 2. g3 {[%emt 0:00:05]} g6 {[%emt 0:00:25]} 3. Bg2 {[%emt 0:00:11]} c5 {[%emt 0:00:46]} 4. d3 {[%emt 0:00:15]} Bg7 {[%emt 0:00:07]} 5. Nc3 {[%emt 0:00:27]} Nc6 {[%emt 0:00:33]} 6. Bg5 {[%emt 0:00:56]} d6 {[%emt 0:02:30]} 7. e4 {[%emt 0:00:49]} a6 {[%emt 0:03:22]} 8. O-O {[%emt 0:02:38]} h6 {[%emt 0:03:30]} 9. Bd2 {[%emt 0:00:38]} O-O {[%emt 0:01:29]} 10. Ne1 {[%emt 0:02:25]} Nd4 {[%emt 0:04:50]} 11. Ne2 {[%emt 0:04:20]} Qb6 {[%emt 0:04:33]} 12. Rb1 {[%emt 0:03:45]} Be6 {[%emt 1:19:54]} 13. c4 {[%emt 0:04:11]} Nd7 {[%emt 0:00:00]} 14. Nxd4 {[%emt 0:04:14]} cxd4 {[%emt 0:00:00]} 15. f4 {[%emt 0:00:23]} f5 {[%emt 0:00:00]} 16. Qe2 {[%emt 0:03:46]} Rae8 {[%emt 0:00:00]} 17. Kh1 {[%emt 0:01:25]} Nf6 {[%emt 0:00:00]} 18. Nf3 {[%emt 0:04:07]} fxe4 {[%emt 0:00:00]} 19. dxe4 {[%emt 0:00:07]} Ng4 {[%emt 0:00:00]} 20. Nh4 {[%emt 0:04:26]} d3 {[%emt 0:00:00]} 21. Qxd3 {[%emt 0:00:52]} Qc5 {[%emt 0:00:00]} 22. b3 {[%emt 0:15:36]} Nf2+ {[%emt 0:00:00]} 23. Rxf2 {[%emt 0:00:05]} Qxf2 {[%emt 0:00:00]} 24. Nxg6 {[%emt 0:01:20]} Rf7 {[%emt 0:00:00]} 25. Rf1 {[%emt 0:03:25]} Qd4 {[%emt 0:00:00]} 26. Qxd4 {[%emt 0:00:48]} Bxd4 {[%emt 0:00:00]} 27. f5 {[%emt 0:00:11]} Kh7 {[%emt 0:00:00]} 28. Bf3 {[%emt 0:02:42]} Bd7 {[%emt 0:00:00]} 29. Nf4 {[%emt 0:03:07]} Bc6 {[%emt 0:00:00]} 30. Ne6 {[%emt 0:01:57]} Bb6 {[%emt 0:00:00]} 31. h4 {[%emt 0:00:46]} Rg8 {[%emt 0:00:00]} 32. Kh2 {[%emt 0:01:13]} Bd7 {[%emt 0:00:00]} 33. Nf4 {[%emt 0:00:02]} Bd4 {[%emt 0:00:00]} 34. Bh5 {[%emt 0:01:07]} Rff8 {[%emt 0:00:00]} 35. Bg6+ {[%emt 0:08:02]} Kh8 {[%emt 0:00:00]} 36. g4 {[%emt 0:01:13]} e5 {[%emt 0:00:36]} 37. fxe6 {[%emt 0:03:12]} Bxe6 {[%emt 0:00:09]} 38. Bf5 {[%emt 0:00:07]} Bxf5 {[%emt 0:00:49]} 39. gxf5 {[%emt 0:00:26]} Be5 {[%emt 0:00:22]} 40. Kh3 {[%emt 0:00:02]} b5 {[%emt 0:00:55]} 41. cxb5 {[%emt 0:05:14]} axb5 {[%emt 0:00:01]} 42. Rf3 {[%emt 0:00:07]} Kh7 {[%emt 0:00:25]} 43. Ng6 {[%emt 0:02:15]} Ra8 {[%emt 0:00:08]} 44. Bc3 {[%emt 0:00:55]} Rxa2 {[%emt 0:00:33]} 45. Bxe5 {[%emt 0:00:20]} dxe5 {[%emt 0:00:04]} 46. h5 {[%emt 0:01:23]} Rc8 {[%emt 0:00:52]} 47. f6 {[%emt 0:00:46]} Rcc2 {[%emt 0:00:39]} 48. f7 {[%emt 0:00:08]} Rh2+ {[%emt 0:00:07]} 49. Kg4 {[%emt 0:00:05]} Rag2+ {[%emt 0:00:02]} 50. Rg3 {[%emt 0:00:27]} Rf2 {[%emt 0:00:15]} 51. f8=Q {[%emt 0:00:03]} Rxf8 {[%emt 0:00:02]} 52. Nxf8+ {[%emt 0:00:02]} Kg7 {[%emt 0:00:06]} 53. Nd7 {[%emt 0:00:37]} Re2 {[%emt 0:00:05]} 54. Kf5+ {[%emt 0:00:04]} Kf7 {[%emt 0:00:10]} 55. Nxe5+ {[%emt 0:00:02]} Ke7 {[%emt 0:00:02]} 56. Rg7+ {[%emt 0:00:46]} Kd6 {[%emt 0:00:01]} 57. Nf7+ {[%emt 0:00:06]} Kc5 {[%emt 0:00:03]} 58. Nxh6 {[%emt 0:00:03]} Rh2 {[%emt 0:00:11]} 59. Rg5 {[%emt 0:00:11]} Kb4 {[%emt 0:00:03]} 60. Kg6 {[%emt 0:00:04]} Re2 {[%emt 0:00:03]} 61. Ng8 {[%emt 0:00:41]} Rxe4 {[%emt 0:00:05]} 62. h6 {[%emt 0:00:02]} Rh4 {[%emt 0:00:41]} 63. h7 {[%emt 0:00:05]} Rh3 {[%emt 0:00:17]} 64. Rh5 {[%emt 0:00:03]} 1-0

[Event "Charlotte Open 2024"]
[Site "Charlotte"]
[Date "2024.01.13"]
[Round "1.19"]
[White "Deere, Travis"]
[Black "Senthil, Siddharth"]
[Result "1-0"]
[ECO "D10"]
[WhiteElo "1420"]
[BlackElo "1425"]
[Annotator "NA RC COMBH"]
[PlyCount "61"]
[EventDate "2024.01.05"]
[EventType "swiss"]
[EventCountry "USA"]
[SourceTitle "playchess.com"]
[Source "ChessBase"]
[SourceQuality "1"]
[TimeControl "6600+10"]

1. d4 {[%emt 0:10:06]} d5 {[%emt 0:10:06]} 2. Bf4 {[%emt 0:00:06]} Nf6 {[%emt 0:00:10]} 3. e3 {[%emt 0:00:06]} Bf5 {[%emt 0:00:50]} 4. c4 {[%emt 0:01:05]} c6 {[%emt 0:00:40]} 5. Nc3 {[%emt 0:04:21]} e6 {[%emt 0:03:43]} 6. Qb3 {[%emt 0:00:55]} Qb6 {[%emt 0:02:36]} 7. c5 {[%emt 0:03:38]} Qxb3 {[%emt 0:01:18]} 8. axb3 {[%emt 0:00:10]} Nbd7 {[%emt 0:02:49]} 9. b4 {[%emt 0:02:16]} b5 {[%emt 0:07:31]} 10. Ra6 {[%emt 0:04:51]} Rc8 {[%emt 0:08:37]} 11. Nf3 {[%emt 0:06:57]} Nh5 {[%emt 0:04:44]} 12. Rxa7 {[%emt 0:01:18]} Nxf4 {[%emt 0:02:34]} 13. exf4 {[%emt 0:00:19]} g6 {[%emt 0:04:39]} 14. Be2 {[%emt 0:06:14]} Bh6 {[%emt 0:02:20]} 15. g3 {[%emt 0:02:04]} Bh3 {[%emt 0:09:35]} 16. Kd2 {[%emt 0:14:29]} Bg2 {[%emt 0:10:46]} 17. Re1 {[%emt 0:03:18]} Bxf3 {[%emt 0:02:15]} 18. Bxf3 {[%emt 0:00:13]} Nf6 {[%emt 0:02:08]} 19. Rea1 {[%emt 0:03:56]} O-O {[%emt 0:04:35]} 20. h4 {[%emt 0:00:27]} Rfd8 {[%emt 0:01:33]} 21. Kd3 {[%emt 0:02:01]} Rd7 {[%emt 0:03:07]} 22. Ne2 {[%emt 0:02:31]} Rxa7 {[%emt 0:02:28]} 23. Rxa7 {[%emt 0:00:09]} Ne8 {[%emt 0:03:10]} 24. Nc1 {[%emt 0:03:00]} Nc7 {[%emt 0:02:45]} 25. Nb3 {[%emt 0:00:58]} f6 {[%emt 0:06:09]} 26. Na5 {[%emt 0:00:42]} Bf8 {[%emt 0:00:53]} 27. Nxc6 {[%emt 0:01:18]} Kf7 {[%emt 0:00:56]} 28. Na5 {[%emt 0:00:56]} Ke8 {[%emt 0:01:46]} 29. Be2 {[%emt 0:01:26]} h5 {[%emt 0:01:56]} 30. Ke3 {[%emt 0:00:39]} f5 {[%emt 0:00:38]} 31. Rb7 {[%emt 0:00:39]} 1-0

[Event "Charlotte Open 2024"]
[Site "Charlotte"]
[Date "2024.01.14"]
[Round "2.1"]
[White "Zhou, Jianchao"]
[Black "Proleiko, Julian"]
[Result "1/2-1/2"]
[ECO "B38"]
[WhiteElo "2562"]
[BlackElo "2270"]
[Annotator "RC"]
[PlyCount "62"]
[EventDate "2024.01.05"]
[EventType "swiss"]
[EventCountry "USA"]
[SourceTitle "playchess.com"]
[Source "ChessBase"]
[SourceQuality "1"]
[TimeControl "6600+10"]

1. Nf3 {[%emt 0:00:03]} g6 {[%emt 0:00:14]} 2. d4 {[%emt 0:02:03]} Bg7 {[%emt 0:00:48]} 3. c4 {[%emt 0:02:22]} c5 {[%emt 0:00:05]} 4. e4 {[%emt 0:01:55]} cxd4 {[%emt 0:00:19]} 5. Nxd4 {[%emt 0:00:06]} Nc6 {[%emt 0:00:03]} 6. Be3 {[%emt 0:00:12]} Qb6 {[%emt 0:00:04]} 7. Nb3 {[%emt 0:03:10]} Qd8 {[%emt 0:01:01]} 8. Qd2 {[%emt 0:03:14]} Nf6 {[%emt 0:01:07]} 9. f3 {[%emt 0:00:42]} O-O {[%emt 0:00:11]} 10. Nc3 {[%emt 0:00:06]} a5 {[%emt 0:00:06]} 11. Na4 {[%emt 0:11:41]} d6 {[%emt 0:02:14]} 12. Be2 {[%emt 0:08:02]} Nd7 {[%emt 0:07:57]} 13. O-O {[%emt 0:01:11]} b6 {[%emt 0:04:21]} 14. Nd4 {[%emt 0:00:48]} Nxd4 {[%emt 0:00:08]} 15. Bxd4 {[%emt 0:00:05]} Bxd4+ {[%emt 0:02:57]} 16. Qxd4 {[%emt 0:00:18]} Qc7 {[%emt 0:00:14]} 17. Rfd1 {[%emt 0:00:39]} Bb7 {[%emt 0:03:49]} 18. Bf1 {[%emt 0:05:26]} Rad8 {[%emt 0:01:07]} 19. Rd2 {[%emt 0:02:43]} Nc5 {[%emt 0:03:22]} 20. Nc3 {[%emt 0:00:12]} Ne6 {[%emt 0:03:04]} 21. Qf2 {[%emt 0:00:20]} Bc6 {[%emt 0:04:31]} 22. Re1 {[%emt 0:04:31]} Nc5 {[%emt 0:00:53]} 23. f4 {[%emt 0:10:13]} e5 {[%emt 0:08:39]} 24. f5 {[%emt 0:00:55]} f6 {[%emt 0:00:21]} 25. h4 {[%emt 0:03:23]} Qe7 {[%emt 0:04:27]} 26. Nd5 {[%emt 0:12:42]} Bxd5 {[%emt 0:00:09]} 27. Rxd5 {[%emt 0:00:06]} Kh8 {[%emt 0:04:31]} 28. g3 {[%emt 0:16:58]} Rg8 {[%emt 0:03:11]} 29. Bh3 {[%emt 0:00:53]} g5 {[%emt 0:00:18]} 30. h5 {[%emt 0:01:09]} h6 {[%emt 0:02:19]} 31. g4 {[%emt 0:00:56]} Qc7 {[%emt 0:00:24]} 1/2-1/2

[Event "Charlotte Open 2024"]
[Site "Charlotte"]
[Date "2024.01.14"]
[Round "2.2"]
[White "Titus, Andrew"]
[Black "Kantor, Gergely"]
[Result "1-0"]
[ECO "C90"]
[WhiteElo "2202"]
[BlackElo "2531"]
[Annotator "RC"]
[PlyCount "109"]
[EventDate "2024.01.05"]
[EventType "swiss"]
[EventCountry "USA"]
[SourceTitle "playchess.com"]
[Source "ChessBase"]
[SourceQuality "1"]
[TimeControl "6600+10"]

1. e4 {[%emt 0:02:10]} e5 {[%emt 0:03:01]} 2. Nf3 {[%emt 0:00:06]} Nc6 {[%emt 0:00:04]} 3. Bb5 {[%emt 0:00:05]} a6 {[%emt 0:00:11]} 4. Ba4 {[%emt 0:00:03]} Nf6 {[%emt 0:00:36]} 5. O-O {[%emt 0:00:18]} Be7 {[%emt 0:00:06]} 6. d3 {[%emt 0:00:05]} d6 {[%emt 0:00:46]} 7. c3 {[%emt 0:01:36]} O-O {[%emt 0:00:16]} 8. Re1 {[%emt 0:00:58]} Re8 {[%emt 0:05:25]} 9. Nbd2 {[%emt 0:13:19]} Bf8 {[%emt 0:00:39]} 10. Nf1 {[%emt 0:00:23]} b5 {[%emt 0:06:11]} 11. Bb3 {[%emt 0:07:05]} h6 {[%emt 0:03:51]} 12. a4 {[%emt 0:09:21]} b4 {[%emt 0:14:36]} 13. Ne3 {[%emt 0:19:13]} bxc3 {[%emt 0:02:22]} 14. bxc3 {[%emt 0:02:34]} Na5 {[%emt 0:00:08]} 15. Ba2 {[%emt 0:06:20]} c6 {[%emt 0:05:28]} 16. Nh4 {[%emt 0:09:58]} d5 {[%emt 0:08:24]} 17. Qf3 {[%emt 0:03:27]} Be6 {[%emt 0:03:48]} 18. Nhf5 {[%emt 0:09:56]} g6 {[%emt 0:03:23]} 19. Ng3 {[%emt 0:00:28]} Rb8 {[%emt 0:06:44]} 20. Qe2 {[%emt 0:01:12]} Nb3 {[%emt 0:03:13]} 21. Bxb3 {[%emt 0:06:29]} Rxb3 {[%emt 0:00:09]} 22. Qc2 {[%emt 0:00:01]} d4 {[%emt 0:09:54]} 23. Nd1 {[%emt 0:01:28]} Qb6 {[%emt 0:09:49]} 24. cxd4 {[%emt 0:01:15]} exd4 {[%emt 0:02:36]} 25. f4 {[%emt 0:01:02]} Qc5 {[%emt 0:03:37]} 26. Qe2 {[%emt 0:01:36]} Bg4 {[%emt 0:02:14]} 27. Qd2 {[%emt 0:00:16]} Qb4 {[%emt 0:05:22]} 28. Nf2 {[%emt 0:00:21]} Qxd2 {[%emt 0:00:51]} 29. Bxd2 {[%emt 0:00:03]} Bd7 {[%emt 0:11:16]} 30. Rec1 {[%emt 0:01:30]} c5 {[%emt 0:00:00]} 31. h3 {[%emt 0:00:25]} Reb8 {[%emt 0:00:00]} 32. e5 {[%emt 0:01:32]} Nd5 {[%emt 0:00:00]} 33. Nge4 {[%emt 0:00:01]} Rc8 {[%emt 0:00:00]} 34. g4 {[%emt 0:03:21]} Be7 {[%emt 0:00:00]} 35. Ra2 {[%emt 0:00:44]} Nb4 {[%emt 0:00:00]} 36. Bxb4 {[%emt 0:00:33]} Rxb4 {[%emt 0:00:00]} 37. a5 {[%emt 0:00:19]} Kg7 {[%emt 0:01:20]} 38. Rac2 {[%emt 0:00:21]} Ba4 {[%emt 0:00:00]} 39. Rc4 {[%emt 0:00:01]} Rxc4 {[%emt 0:00:00]} 40. Rxc4 {[%emt 0:00:01]} Bb3 {[%emt 0:00:00]} 41. Rc1 {[%emt 0:00:16]} c4 {[%emt 0:00:00]} 42. dxc4 {[%emt 0:01:57]} Rxc4 {[%emt 0:00:00]} 43. Rb1 {[%emt 0:00:30]} Bc2 {[%emt 0:00:00]} 44. Rb7 {[%emt 0:00:01]} Ba3 {[%emt 0:00:32]} 45. e6 {[%emt 0:03:07]} Kf8 {[%emt 0:00:23]} 46. Rxf7+ {[%emt 0:00:38]} Ke8 {[%emt 0:00:35]} 47. Nf6+ {[%emt 0:00:56]} Kd8 {[%emt 0:00:00]} 48. Rd7+ {[%emt 0:00:01]} Kc8 {[%emt 0:00:20]} 49. Nd5 {[%emt 0:00:01]} Rc6 {[%emt 0:00:00]} 50. Nb6+ {[%emt 0:00:17]} Kb8 {[%emt 0:00:20]} 51. e7 {[%emt 0:00:29]} Bxe7 {[%emt 0:00:00]} 52. Rxe7 {[%emt 0:00:01]} d3 {[%emt 0:00:00]} 53. Rd7 {[%emt 0:00:12]} Rc3 {[%emt 0:00:00]} 54. Ne4 {[%emt 0:00:48]} Ra3 {[%emt 0:00:07]} 55. Nc5 {[%emt 0:00:00]} 1-0

[Event "Charlotte Open 2024"]
[Site "Charlotte"]
[Date "2024.01.14"]
[Round "2.3"]
[White "Brodsky, David"]
[Black "Jiang, Andrew"]
[Result "1-0"]
[ECO "C95"]
[WhiteElo "2492"]
[BlackElo "2213"]
[Annotator "RC"]
[PlyCount "71"]
[EventDate "2024.01.05"]
[EventType "swiss"]
[EventCountry "USA"]
[SourceTitle "playchess.com"]
[Source "ChessBase"]
[SourceQuality "1"]
[TimeControl "6600+10"]

1. e4 {[%emt 0:03:59]} e5 {[%emt 0:00:11]} 2. Nf3 {[%emt 0:00:02]} Nc6 {[%emt 0:00:12]} 3. Bb5 {[%emt 0:00:02]} a6 {[%emt 0:00:13]} 4. Ba4 {[%emt 0:00:04]} Nf6 {[%emt 0:00:09]} 5. O-O {[%emt 0:00:04]} Be7 {[%emt 0:00:07]} 6. Re1 {[%emt 0:00:03]} b5 {[%emt 0:00:08]} 7. Bb3 {[%emt 0:00:03]} d6 {[%emt 0:00:10]} 8. c3 {[%emt 0:00:04]} O-O {[%emt 0:00:12]} 9. h3 {[%emt 0:00:02]} Nb8 {[%emt 0:00:08]} 10. d4 {[%emt 0:00:03]} Nbd7 {[%emt 0:00:08]} 11. Nbd2 {[%emt 0:00:05]} Bb7 {[%emt 0:00:07]} 12. Bc2 {[%emt 0:00:03]} Re8 {[%emt 0:00:08]} 13. Nf1 {[%emt 0:00:03]} Bf8 {[%emt 0:00:06]} 14. Ng3 {[%emt 0:00:05]} g6 {[%emt 0:00:07]} 15. Bd2 {[%emt 0:00:12]} Bg7 {[%emt 0:00:11]} 16. Qc1 {[%emt 0:00:11]} d5 {[%emt 0:00:07]} 17. Bg5 {[%emt 0:00:29]} h6 {[%emt 0:00:01]} 18. Bxh6 {[%emt 0:02:32]} dxe4 {[%emt 0:00:34]} 19. Nxe5 {[%emt 0:23:38]} Nxe5 {[%emt 0:00:15]} 20. dxe5 {[%emt 0:00:08]} Rxe5 {[%emt 0:00:08]} 21. Bf4 {[%emt 0:06:33]} Re6 {[%emt 0:13:25]} 22. Rd1 {[%emt 0:06:44]} Qe7 {[%emt 0:03:44]} 23. Bb3 {[%emt 0:00:50]} Rb6 {[%emt 0:01:16]} 24. Qe3 {[%emt 0:09:32]} a5 {[%emt 0:04:05]} 25. Bh6 {[%emt 0:09:52]} Qe5 {[%emt 0:05:05]} 26. f4 {[%emt 0:09:42]} Qe7 {[%emt 0:02:05]} 27. f5 {[%emt 0:02:52]} a4 {[%emt 0:01:17]} 28. fxg6 {[%emt 0:07:00]} axb3 {[%emt 0:00:08]} 29. Bxg7 {[%emt 0:01:45]} fxg6 {[%emt 0:02:20]} 30. Bxf6 {[%emt 0:00:15]} Rxf6 {[%emt 0:00:05]} 31. axb3 {[%emt 0:00:10]} Kg7 {[%emt 0:06:02]} 32. Rxa8 {[%emt 0:03:12]} Bxa8 {[%emt 0:00:42]} 33. b4 {[%emt 0:00:50]} Bc6 {[%emt 0:01:05]} 34. Ne2 {[%emt 0:02:34]} Qe5 {[%emt 0:00:22]} 35. Nd4 {[%emt 0:00:43]} Bb7 {[%emt 0:00:31]} 36. Nb3 {[%emt 0:01:05]} 1-0

[Event "Charlotte Open 2024"]
[Site "Charlotte"]
[Date "2024.01.14"]
[Round "2.4"]
[White "Vigorito, David"]
[Black "Cruz, Cristhian"]
[Result "0-1"]
[ECO "D37"]
[WhiteElo "2256"]
[BlackElo "2498"]
[Annotator "RC"]
[PlyCount "82"]
[EventDate "2024.01.05"]
[EventType "swiss"]
[EventCountry "USA"]
[SourceTitle "playchess.com"]
[Source "ChessBase"]
[SourceQuality "1"]
[TimeControl "6600+10"]

1. d4 {[%emt 0:00:03]} e6 {[%emt 0:06:46]} 2. c4 {[%emt 0:00:38]} d5 {[%emt 0:01:13]} 3. Nf3 {[%emt 0:00:28]} a6 {[%emt 0:00:20]} 4. cxd5 {[%emt 0:01:47]} exd5 {[%emt 0:00:08]} 5. Nc3 {[%emt 0:00:09]} Nf6 {[%emt 0:00:55]} 6. Bg5 {[%emt 0:00:13]} Be6 {[%emt 0:00:53]} 7. e3 {[%emt 0:00:57]} Nbd7 {[%emt 0:03:36]} 8. Qc2 {[%emt 0:06:49]} Bd6 {[%emt 0:03:00]} 9. Bd3 {[%emt 0:02:58]} c6 {[%emt 0:00:45]} 10. Bf4 {[%emt 0:09:03]} Qc7 {[%emt 0:02:02]} 11. Bxd6 {[%emt 0:01:40]} Qxd6 {[%emt 0:00:03]} 12. O-O {[%emt 0:02:50]} O-O {[%emt 0:02:14]} 13. Rfc1 {[%emt 0:12:02]} Rfe8 {[%emt 0:09:02]} 14. Na4 {[%emt 0:02:00]} Bg4 {[%emt 0:08:16]} 15. Nd2 {[%emt 0:04:47]} Bh5 {[%emt 0:03:07]} 16. Nc5 {[%emt 0:05:13]} Nxc5 {[%emt 0:12:29]} 17. Qxc5 {[%emt 0:00:27]} Qe6 {[%emt 0:02:46]} 18. b4 {[%emt 0:02:13]} Ng4 {[%emt 0:07:32]} 19. Nf1 {[%emt 0:06:52]} Qf6 {[%emt 0:07:55]} 20. Qc2 {[%emt 0:02:00]} Bg6 {[%emt 0:01:13]} 21. Bxg6 {[%emt 0:02:14]} hxg6 {[%emt 0:00:04]} 22. a4 {[%emt 0:00:37]} Rac8 {[%emt 0:00:41]} 23. Ra2 {[%emt 0:05:25]} Qe6 {[%emt 0:02:39]} 24. Qb3 {[%emt 0:02:33]} Nf6 {[%emt 0:01:07]} 25. Nd2 {[%emt 0:02:14]} Red8 {[%emt 0:09:18]} 26. Rac2 {[%emt 0:03:16]} Ne8 {[%emt 0:00:19]} 27. b5 {[%emt 0:02:03]} cxb5 {[%emt 0:00:42]} 28. axb5 {[%emt 0:00:16]} Rxc2 {[%emt 0:00:07]} 29. Rxc2 {[%emt 0:00:32]} a5 {[%emt 0:00:20]} 30. b6 {[%emt 0:06:27]} Ra8 {[%emt 0:03:24]} 31. h3 {[%emt 0:11:59]} a4 {[%emt 0:05:01]} 32. Qb5 {[%emt 0:02:53]} Nd6 {[%emt 0:04:45]} 33. Qb4 {[%emt 0:01:36]} Nc8 {[%emt 0:03:25]} 34. Rc7 {[%emt 0:03:56]} a3 {[%emt 0:02:15]} 35. Rxb7 {[%emt 0:01:56]} a2 {[%emt 0:01:35]} 36. Nb3 {[%emt 0:00:27]} Qe4 {[%emt 0:03:47]} 37. Kh2 {[%emt 0:02:56]} Qb1 {[%emt 0:01:27]} 38. Rc7 {[%emt 0:01:02]} a1=Q {[%emt 0:00:36]} 39. b7 {[%emt 0:00:41]} Qg1+ {[%emt 0:00:18]} 40. Kg3 {[%emt 0:00:05]} Qaf1 {[%emt 0:00:10]} 41. Rxc8+ {[%emt 0:00:27]} Kh7 {[%emt 0:00:09]} 0-1

[Event "Charlotte Open 2024"]
[Site "Charlotte"]
[Date "2024.01.14"]
[Round "2.5"]
[White "Troff, Kayden"]
[Black "Rutten, Alexander"]
[Result "1-0"]
[ECO "B82"]
[WhiteElo "2484"]
[BlackElo "2142"]
[Annotator "RC"]
[PlyCount "61"]
[EventDate "2024.01.05"]
[EventType "swiss"]
[EventCountry "USA"]
[SourceTitle "playchess.com"]
[Source "ChessBase"]
[SourceQuality "1"]
[TimeControl "6600+10"]

1. e4 {[%emt 0:00:03]} c5 {[%emt 0:00:41]} 2. Nc3 {[%emt 0:00:08]} d6 {[%emt 0:00:43]} 3. f4 {[%emt 0:00:11]} Nc6 {[%emt 0:04:02]} 4. Nf3 {[%emt 0:01:38]} e6 {[%emt 0:02:32]} 5. d4 {[%emt 0:00:24]} cxd4 {[%emt 0:02:55]} 6. Nxd4 {[%emt 0:00:21]} Nf6 {[%emt 0:00:35]} 7. Nf3 {[%emt 0:01:18]} a6 {[%emt 0:00:57]} 8. Bd3 {[%emt 0:00:50]} Be7 {[%emt 0:05:18]} 9. O-O {[%emt 0:00:24]} b5 {[%emt 0:05:32]} 10. Qe1 {[%emt 0:16:59]} b4 {[%emt 0:11:52]} 11. Nd1 {[%emt 0:02:02]} e5 {[%emt 0:02:25]} 12. Ne3 {[%emt 0:05:07]} exf4 {[%emt 0:25:19]} 13. Nd5 {[%emt 0:02:17]} O-O {[%emt 0:06:08]} 14. Bxf4 {[%emt 0:05:46]} Bb7 {[%emt 0:01:31]} 15. Nxe7+ {[%emt 0:03:42]} Qxe7 {[%emt 0:00:10]} 16. Nh4 {[%emt 0:01:00]} d5 {[%emt 0:03:56]} 17. Nf5 {[%emt 0:06:09]} Qe6 {[%emt 0:06:58]} 18. Qg3 {[%emt 0:11:36]} Nh5 {[%emt 0:06:14]} 19. Qg5 {[%emt 0:01:49]} dxe4 {[%emt 0:03:06]} 20. Rae1 {[%emt 0:05:57]} Qg6 {[%emt 0:03:51]} 21. Bxe4 {[%emt 0:01:31]} Qxg5 {[%emt 0:12:51]} 22. Bxg5 {[%emt 0:00:13]} h6 {[%emt 0:01:35]} 23. Be7 {[%emt 0:03:38]} Rfb8 {[%emt 0:01:08]} 24. g4 {[%emt 0:02:53]} Nxe7 {[%emt 0:02:41]} 25. Nxe7+ {[%emt 0:00:07]} Kf8 {[%emt 0:00:05]} 26. gxh5 {[%emt 0:00:09]} Bxe4 {[%emt 0:00:14]} 27. Rxe4 {[%emt 0:00:08]} Re8 {[%emt 0:00:26]} 28. Rfe1 {[%emt 0:00:13]} a5 {[%emt 0:00:23]} 29. c4 {[%emt 0:00:06]} bxc3 {[%emt 0:00:21]} 30. bxc3 {[%emt 0:00:06]} Rad8 {[%emt 0:00:19]} 31. c4 {[%emt 0:00:08]} 1-0